fUST/lending_fUST_20240717
["ID","MTS","AMOUNT","RATE_DAILY","PERIOD"]
[332390564,1721145600048,2897.30548455,0.00014999,2]
[332390565,1721145611322,166.71143779,0.00014999,2]
[332390566,1721145618705,155.10844789,0.00014999,2]
[332390567,1721145619724,720.01545952,0.00014999,2]
[332390568,1721145621624,180.13782796,0.00014999,2]
[332390569,1721145622465,11041.25352559,0.00014998,2]
[332390570,1721145625478,237.79291428,0.00014999,2]
[332390571,1721145632074,6043.77839438,0.00014998,2]
[332390572,1721145636087,201.05721534,0.00014999,2]
[332390573,1721145636291,525.81685911,0.00014999,2]
[332390574,1721145637513,155.18079,0.00014999,2]
[332390575,1721145639461,1739.60977823,0.00015,2]
[332390576,1721145640022,662.1748885,0.00014999,2]
[332390577,1721145640903,2674.5882859,0.00014999,2]
[332390578,1721145642779,1491.9657801,0.00014999,2]
[332390579,1721145645953,209.22250138,0.00014999,2]
[332390580,1721145649979,1989.67183354,0.00014999,2]
[332390581,1721145651978,2674.5882859,0.00014999,2]
[332390582,1721145652051,566.77821921,0.00014999,2]
[332390583,1721145653387,240.05528547,0.00014999,2]
[332390585,1721145657581,1500.0,0.00014999,2]
[332390586,1721145658250,5334.87385838,0.00014998,2]
[332390587,1721145660796,195.56224749,0.00014999,2]
[332390588,1721145662004,287.22746053,0.00014999,2]
[332390589,1721145662772,886.44482597,0.00014999,2]
[332390590,1721145663189,5509.92739811,0.00014998,2]
[332390591,1721145663717,531.23023325,0.00014999,2]
[332390593,1721145666498,726.14786698,0.00014999,2]
[332390594,1721145668991,877.60873585,0.00014999,2]
[332390595,1721145669765,2422.80787231,0.00015,2]
[332390596,1721145672928,159.7079356,0.00014999,2]
[332390597,1721145673686,247.79014454,0.00014999,2]
[332390598,1721145675293,150.69860279,0.00022279,30]
[332390599,1721145677530,678.99585961,0.00014999,2]
[332390601,1721145678040,5509.92739811,0.00014998,2]
[332390602,1721145680730,2132.45671248,0.00014999,2]
[332390603,1721145687616,247.79014454,0.00014999,2]
[332390604,1721145691317,189.51973353,0.00014999,2]
[332390606,1721145693200,678.99585961,0.00014999,2]
[332390607,1721145696455,726.14786698,0.00014999,2]
[332390608,1721145720804,390.39607893,0.00014999,2]
[332390609,1721145734449,10590.39159899,0.00014998,2]
[332390610,1721145777916,607.68053383,0.00014999,2]
[332390611,1721145789386,1288.90581652,0.00014999,2]
[332390612,1721145798379,229.882139,0.00014999,2]
[332390613,1721145801633,251.2727351,0.00014999,2]
[332390614,1721145809914,2669.88794917,0.00014999,2]
[332390616,1721145843318,189.51973353,0.00014999,2]
[332390617,1721145846041,5485.78686686,0.00014998,2]
[332390618,1721145846705,342.3596465,0.00014999,2]
[332390619,1721145856487,385.50481422,0.00014999,2]
[332390620,1721145857649,247.79014454,0.00014999,2]
[332390624,1721145987338,189.51973353,0.00014999,2]
[332390626,1721146014654,247.79014454,0.00014999,2]
[332390627,1721146126550,189.51973353,0.00014999,2]
[332390630,1721146138591,74.32114296,0.00010959,2]
[332390631,1721146138618,569.85885704,0.00010959,2]
[332390635,1721146186143,1624.18195241,0.00014999,2]
[332390637,1721146205616,395.70326343,0.00014999,2]
[332390638,1721146207339,201.63116445,0.00013283,2]
[332390639,1721146215811,1491.05500079,0.00014999,2]
[332390640,1721146217943,1988.50300609,0.00014999,2]
[332390641,1721146218496,281.23363357,0.00014999,2]
[332390642,1721146221090,726.14786698,0.00014999,2]
[332390643,1721146224435,1500.0,0.00014999,2]
[332390644,1721146225611,459.17360195,0.00014999,2]
[332390645,1721146227691,9594.79389225,0.00014998,2]
[332390646,1721146230962,154.79952594,0.00014999,2]
[332390748,1721146233681,-194.104698,0.00016149,2]
[332390750,1721146233691,-300.0,0.00016254,2]
[332390752,1721146233701,-300.0,0.00016254,2]
[332390754,1721146233710,-14264.30392665,0.00016255,2]
[332390756,1721146233720,-22321.24368977,0.00016255,2]
[332390786,1721146237589,261.305185,0.00014999,2]
[332390787,1721146237639,1624.18195241,0.00013283,2]
[332390790,1721146238074,6814.10426376,0.00014998,2]
[332390829,1721146238683,-12657.68983193,0.00016255,2]
[332390830,1721146238692,-292.8332064,0.00016255,2]
[332390831,1721146238701,-7147.83264831,0.00016255,2]
[332390832,1721146238710,-180.54457903,0.00016255,2]
[332390833,1721146238720,-182.82989065,0.00016255,2]
[332390834,1721146238731,-865.4067841,0.00016255,2]
[332390835,1721146238741,-803.36733613,0.00016255,2]
[332390836,1721146238750,-2130.46951269,0.00016255,2]
[332390837,1721146238759,-187.84280407,0.00016255,2]
[332390838,1721146238768,-375.02026335,0.00016255,2]
[332390839,1721146238778,-155.42805707,0.00016255,2]
[332390840,1721146238788,-154.96178437,0.00016255,2]
[332390841,1721146238798,-3082.43601367,0.00016255,2]
[332390842,1721146238807,-174.69015234,0.00016255,2]
[332390843,1721146238817,-284.01854297,0.00016255,2]
[332390844,1721146238827,-155.79344934,0.00016255,2]
[332390845,1721146238836,-159.86540809,0.00016255,2]
[332390846,1721146238845,-319.36064892,0.00016255,2]
[332390847,1721146238857,-189.51973353,0.00016255,2]
[332390848,1721146238869,-214.92973109,0.00016255,2]
[332390849,1721146238880,-318.82736005,0.00016255,2]
[332390850,1721146238890,-2130.46951269,0.00016255,2]
[332390851,1721146238900,-1560.82850105,0.00016403,2]
[332390852,1721146238909,-24900.0,0.00016503,2]
[332390853,1721146238920,-420.0,0.00017879,2]
[332390854,1721146238930,-287.42129962,0.0001818,2]
[332390855,1721146238940,-154.83742071,0.0001818,2]
[332390856,1721146238950,-485.01275825,0.0001818,2]
[332390857,1721146238959,-191.27347695,0.00018798,2]
[332390858,1721146238969,-528.99024115,0.000189,2]
[332390859,1721146238979,-198.52261924,0.00019,2]
[332390860,1721146238988,-1560.82850098,0.00019045,2]
[332390861,1721146238997,-162.201631,0.00019178,2]
[332390862,1721146239007,-587.0,0.00019667,2]
[332390863,1721146239016,-500.0,0.00019999,2]
[332390864,1721146239025,-500.0,0.00019999,2]
[332390865,1721146239034,-205.2450055,0.00019999,2]
[332390866,1721146239044,-500.0,0.00019999,2]
[332390867,1721146239053,-500.0,0.00019999,2]
[332390868,1721146239063,-500.0,0.00019999,2]
[332390869,1721146239072,-500.0,0.00019999,2]
[332390870,1721146239081,-500.0,0.00019999,2]
[332390871,1721146239091,-500.0,0.00019999,2]
[332390872,1721146239100,-308.74830586,0.00019999,2]
[332390873,1721146239109,-500.0,0.00019999,2]
[332390874,1721146239124,-500.0,0.00019999,2]
[332390875,1721146239136,-500.0,0.00019999,2]
[332390876,1721146239145,-500.0,0.00019999,2]
[332390877,1721146239154,-500.0,0.00019999,2]
[332390878,1721146239163,-500.0,0.00019999,2]
[332390879,1721146239174,-500.0,0.00019999,2]
[332390880,1721146239183,-500.0,0.00019999,2]
[332390881,1721146239192,-500.0,0.00019999,2]
[332390882,1721146239201,-500.0,0.00019999,2]
[332390883,1721146239210,-500.0,0.00019999,2]
[332390884,1721146239219,-500.0,0.00019999,2]
[332390885,1721146239230,-500.0,0.00019999,2]
[332390886,1721146239349,-296.77610956,0.00019999,2]
[332390887,1721146239360,-343.08771822,0.00019999,2]
[332390888,1721146239373,-500.0,0.00019999,2]
[332390889,1721146239384,-215.43991908,0.00019999,2]
[332390890,1721146239394,-500.0,0.00019999,2]
[332390891,1721146239403,-500.0,0.00019999,2]
[332390892,1721146239413,-179.59576535,0.00019999,2]
[332390893,1721146239422,-500.0,0.00019999,2]
[332390894,1721146239432,-500.0,0.00019999,2]
[332390895,1721146239441,-500.0,0.00019999,2]
[332390896,1721146239450,-500.0,0.00019999,2]
[332390897,1721146239460,-154.69833824,0.0002,2]
[332390898,1721146239470,-6876.61298454,0.0002,2]
[332390899,1721146239479,-293.84391681,0.0002,2]
[332390900,1721146239489,-309.08818984,0.0002,2]
[332390901,1721146239498,-154.66746495,0.0002,2]
[332390902,1721146239507,-208.6,0.00020691,2]
[332390903,1721146239518,-1108.21112116,0.00020758,2]
[332390904,1721146239527,-208.6,0.00020927,2]
[332390905,1721146239536,-6658.46428859,0.00021085,3]
[332390906,1721146239546,-1407.0,0.00021085,2]
[332390907,1721146239555,-299.58099341,0.00021095,2]
[332390908,1721146239564,-490.761122,0.00021096,2]
[332390909,1721146239575,-154.4433292,0.00021096,2]
[332390910,1721146239584,-208.6,0.00021163,2]
[332390911,1721146239594,-208.6,0.00021399,2]
[332390912,1721146239603,-157.0,0.0002157,3]
[332390913,1721146239613,-480.0,0.00021634,2]
[332390914,1721146239626,-208.6,0.00021635,2]
[332390915,1721146239635,-1560.82850098,0.00021688,2]
[332390916,1721146239645,-1145.65238566,0.0002176,2]
[332390917,1721146239654,-644.41055606,0.00021796,2]
[332390918,1721146239663,-3000.0,0.000218,2]
[332390919,1721146239673,-3000.0,0.0002181,2]
[332390920,1721146239682,-226.02684754,0.00021818,2]
[332390921,1721146239692,-763.88482052,0.00021818,2]
[332390922,1721146239702,-428.86667829,0.00021818,2]
[332390923,1721146239712,-3000.0,0.0002182,2]
[332390924,1721146239724,-3000.0,0.0002183,2]
[332390925,1721146239735,-3000.0,0.0002184,2]
[332390926,1721146239745,-608.92173907,0.0002184,3]
[332391022,1721146241597,-6049.54254952,0.0002184,3]
[332391024,1721146241607,-3000.0,0.0002185,2]
[332391026,1721146241620,-23316.81566967,0.0002185,3]
[332391077,1721146242200,-0.48234125,0.0002185,3]
[332391081,1721146242229,458.65976805,0.00014999,2]
[332391087,1721146242286,155.2411359,0.00014999,2]
[332391098,1721146242402,-3316.55914348,0.0002185,3]
[332391100,1721146242412,-272.28431312,0.00021859,2]
[332391102,1721146242421,-500.0,0.00021859,2]
[332391103,1721146242430,-156.07919437,0.00021859,2]
[332391105,1721146242439,-450.20988692,0.00021859,2]
[332391107,1721146242450,-22371.66149702,0.0002186,2]
[332391110,1721146242470,-500.0,0.0002186,2]
[332391287,1721146243931,-397.68,0.0002175,3]
[332391289,1721146243941,-6881.94655455,0.0002186,2]
[332391657,1721146246888,-445.05021351,0.0002186,2]
[332394526,1721146320355,189.51973353,0.00014999,2]
[332394527,1721146321034,248.00352702,0.00014999,2]
[332394528,1721146331704,159.71986355,0.00014999,2]
[332394529,1721146346014,2256.11837293,0.00014999,2]
[332394530,1721146379156,1624.18195241,0.00014999,2]
[332394532,1721146435174,1624.18195241,0.00014999,2]
[332394533,1721146460212,1000.0,0.00021,21]
[332394537,1721146468740,1378.95359963,0.00016,2]
[332394538,1721146564175,989.66935201,0.00016,2]
[332394539,1721146578361,1062.00993074,0.00014999,2]
[332394540,1721146620723,159.71810457,0.00014999,2]
[332394541,1721146659467,1206.58439965,0.00016,2]
[332394542,1721146766528,298.57484914,0.00015,2]
[332394543,1721146828562,156.31654489,0.00014999,2]
[332394544,1721146849589,1055.76134972,0.00016,2]
[332394545,1721146944970,1988.50300609,0.00014999,2]
[332394553,1721146999470,1500.0,0.00014999,2]
[332394554,1721147001077,156.31654489,0.00014999,2]
[332394555,1721147017069,156.31654489,0.00014999,2]
[332394556,1721147039854,923.79118097,0.00016,2]
[332394561,1721147183079,156.31654489,0.00014999,2]
[332394562,1721147227580,5478.01115877,0.00014998,2]
[332394563,1721147231011,808.31728341,0.00016,2]
[332394565,1721147277822,2959.73060405,0.00014999,2]
[332394575,1721147340652,157.39085416,0.00014999,2]
[332394576,1721147344085,156.31654489,0.00014999,2]
[332394577,1721147357659,-300.0,0.00016099,2]
[332394578,1721147357685,-300.0,0.00016099,2]
[332394579,1721147357707,-4353.16409429,0.000161,2]
[332394580,1721147380087,5478.01115877,0.00014998,2]
[332394582,1721147385339,940.16481678,0.00014999,2]
[332394584,1721147389086,5478.01115877,0.00014998,2]
[332394586,1721147413282,150.66852924,0.00022262,30]
[332394587,1721147414395,226.25964353,0.00014999,2]
[332394588,1721147426614,305.62369676,0.00014998,2]
[332394589,1721147428365,154.84168716,0.00014999,2]
[332394628,1721147432496,-2835.70352642,0.000161,2]
[332394712,1721147442996,-3241.87157824,0.000161,2]
[332394714,1721147443008,-5638.6528656,0.000161,2]
[332394729,1721147450266,232.90624314,0.00014999,2]
[332394730,1721147453871,165.20623857,0.00014999,2]
[332394734,1721147512135,156.31654489,0.00014999,2]
[332394735,1721147629679,5478.01115877,0.00014998,2]
[332394736,1721147642118,156.31654489,0.00014999,2]
[332394737,1721147725893,12500.0,0.0002255,29]
[332394738,1721147770708,4476.12170126,0.00014999,2]
[332394739,1721147808126,156.31654489,0.00014999,2]
[332394740,1721147822772,12500.0,0.00024,60]
[332394741,1721147919827,150.65349696,0.00022262,30]
[332394744,1721148217865,243.42524298,0.00015757,2]
[332394745,1721148219320,4813.55107787,0.00015843,2]
[332394755,1721148399155,-300.0,0.00016099,2]
[332394756,1721148399176,-16.75030502,0.000161,2]
[332394757,1721148481065,150.66852924,0.00022261,30]
[332394759,1721148492540,-495.48979577,0.000161,2]
[332394760,1721148528174,593.9905268,0.00014999,2]
[332394762,1721148592252,998.22443586,0.00014999,2]
[332394764,1721148604181,395.99368453,0.00014999,2]
[332394769,1721148611085,200.0,0.00014999,2]
[332394770,1721148611600,259.13707897,0.00014999,2]
[332394774,1721148615382,532.59095872,0.00014999,2]
[332394775,1721148620233,416.76677419,0.00014999,2]
[332394776,1721148623323,254.98446288,0.00014999,2]
[332394777,1721148624296,663.28777002,0.00014999,2]
[332394778,1721148629495,160.11041109,0.00014999,2]
[332394798,1721148632063,276.68650131,0.00014999,2]
[332394799,1721148634777,155.10750138,0.00014999,2]
[332394834,1721148638020,-15734.66844338,0.000161,2]
[332394836,1721148638029,-10586.37200374,0.000161,2]
[332394879,1721148639154,162.06089752,0.00014999,2]
[332394933,1721148640390,-5794.05749715,0.000161,2]
[332394935,1721148640400,-315.22523858,0.00016255,2]
[332394936,1721148640409,-192.15666977,0.00016255,2]
[332394937,1721148640418,-2129.50465136,0.00016255,2]
[332394938,1721148640427,-315.22523858,0.00016255,2]
[332394939,1721148640437,-524.1077099,0.00016255,2]
[332394940,1721148640446,-154.71377022,0.00016255,2]
[332394941,1721148640455,-165.20623857,0.00016255,2]
[332394942,1721148640465,-677.67484457,0.00016255,2]
[332394943,1721148640474,-362.54454602,0.00016255,2]
[332394944,1721148640483,-193.95450379,0.00016255,2]
[332394945,1721148640493,-154.69833824,0.00016255,2]
[332394946,1721148640503,-182.97392112,0.00016255,2]
[332394947,1721148640513,-156.22792532,0.00016255,2]
[332394948,1721148640523,-413.16071737,0.00016255,2]
[332394949,1721148640532,-459.7457846,0.00016255,2]
[332394950,1721148640541,-232.98135407,0.00016255,2]
[332394951,1721148640551,-599.33883006,0.00016255,2]
[332394952,1721148640560,-436.925049,0.00017531,2]
[332394953,1721148640570,-3000.0,0.00017572,2]
[332394954,1721148640579,-10877.1315337,0.00017605,2]
[332394955,1721148640589,-216.84904636,0.00017631,2]
[332394956,1721148640598,-459.5727982,0.00017786,2]
[332394957,1721148640607,-168.444805,0.00017818,2]
[332394958,1721148640617,-168.444805,0.00017934,2]
[332394959,1721148640626,-1360.48316841,0.0001795,2]
[332394960,1721148640635,-191.30476359,0.00018,2]
[332394961,1721148640644,-4953.16409429,0.00018,2]
[332394962,1721148640653,-168.444805,0.0001805,2]
[332394963,1721148640662,-168.444805,0.00018167,2]
[332394964,1721148640671,-168.444805,0.00018283,2]
[332394965,1721148640680,-168.444805,0.00018399,2]
[332394966,1721148640690,-168.444805,0.00018515,2]
[332394967,1721148640700,-168.444805,0.00018631,2]
[332394968,1721148640708,-168.444805,0.00018747,2]
[332394969,1721148640718,-1360.48316841,0.00018895,2]
[332394970,1721148640727,-402.79270453,0.00018899,2]
[332394971,1721148640736,-154.65202061,0.00018899,2]
[332394972,1721148640745,-469.73106147,0.00019,3]
[332394973,1721148640754,-258.66730962,0.00019165,2]
[332394974,1721148640766,-216.84904634,0.00019261,2]
[332394975,1721148640775,-170.02266,0.00019357,2]
[332394976,1721148640785,-638.29908191,0.00019416,2]
[332394977,1721148640794,-500.0,0.00019815,2]
[332394978,1721148640803,-5166.32440916,0.00019839,5]
[332394979,1721148640812,-1360.48316841,0.0001984,2]
[332394980,1721148640822,-2472.56458195,0.0002,2]
[332394981,1721148640831,-246.95263272,0.0002,2]
[332394982,1721148640841,-196.84039408,0.0002,2]
[332394983,1721148640850,-293.52950214,0.0002,2]
[332394984,1721148640859,-468.9,0.00020088,2]
[332394985,1721148640869,-153.0,0.00020219,2]
[332394986,1721148640878,-153.0,0.00020219,2]
[332394987,1721148640887,-153.0,0.00020219,2]
[332394988,1721148640897,-468.9,0.00020254,2]
[332394989,1721148640906,-620.9149541,0.00020387,2]
[332394990,1721148640916,-468.9,0.00020421,2]
[332394991,1721148640926,-468.9,0.00020587,2]
[332394992,1721148640936,-153.0,0.0002063,2]
[332394993,1721148640945,-468.9,0.00020753,2]
[332394994,1721148640954,-151.0,0.00020753,2]
[332394995,1721148640963,-1360.48316841,0.00020784,2]
[332394996,1721148640973,-153.0,0.00020804,2]
[332394997,1721148640982,-216.84904634,0.0002089,2]
[332394998,1721148640991,-468.9,0.00020919,2]
[332394999,1721148641001,-151.0,0.00020919,2]
[332395000,1721148641012,-500.0,0.00020989,2]
[332395001,1721148641021,-500.0,0.00020989,2]
[332395002,1721148641119,-390.55990808,0.00020989,2]
[332395003,1721148641131,-468.38221323,0.00020989,2]
[332395004,1721148641143,-291.19366694,0.00020989,2]
[332395005,1721148641153,-353.28841837,0.00020989,2]
[332395006,1721148641166,-58941.97516534,0.0002099,2]
[332395007,1721148641178,-7145.461599,0.0002099,2]
[332395092,1721148646150,-315.22523858,0.00016255,2]
[332395093,1721148646160,-567.00490638,0.0001818,2]
[332395094,1721148646170,-989.09832925,0.0001818,2]
[332395095,1721148646179,-159.308431,0.00020523,2]
[332395096,1721148646189,-500.0,0.00020989,2]
[332395097,1721148646198,-347.88509852,0.00020989,2]
[332395098,1721148646209,-500.0,0.00020989,2]
[332395099,1721148646219,-298.30640096,0.00020989,2]
[332395100,1721148646228,-500.0,0.00020989,2]
[332395101,1721148646238,-483.93037113,0.00020989,2]
[332395103,1721148646248,-500.0,0.00020989,2]
[332395104,1721148646257,-382.39523091,0.00020989,2]
[332395105,1721148646268,-55070.93840557,0.0002099,2]
[332395106,1721148646277,-151.0,0.0002099,2]
[332395107,1721148646287,-151.0,0.0002099,2]
[332395108,1721148646296,-191.210288,0.0002099,2]
[332395109,1721148646306,-191.210288,0.0002099,2]
[332395110,1721148646315,-151.0,0.0002099,2]
[332395111,1721148646325,-151.0,0.0002099,2]
[332395112,1721148646335,-151.0,0.0002099,2]
[332395113,1721148646344,-151.0,0.0002099,2]
[332395114,1721148646356,-257.581564,0.0002099,2]
[332395115,1721148646365,-257.581564,0.0002099,2]
[332395116,1721148646375,-389.96541,0.0002099,2]
[332395117,1721148646384,-389.96541,0.0002099,2]
[332395118,1721148646393,-169.284382,0.0002099,2]
[332395119,1721148646403,-151.0,0.0002099,2]
[332395120,1721148646412,-151.0,0.0002099,2]
[332395121,1721148646421,-151.0,0.0002099,2]
[332395122,1721148646431,-151.0,0.0002099,2]
[332395123,1721148646440,-1000.0,0.00021,8]
[332395124,1721148646527,-248.1002,0.00021,2]
[332395125,1721148646539,-468.9,0.00021086,2]
[332395126,1721148646549,-151.0,0.00021086,2]
[332395127,1721148646558,-299.58099341,0.00021095,2]
[332395128,1721148646567,-561.620416,0.00021096,2]
[332395129,1721148646577,-264.566,0.00021192,2]
[332395130,1721148646586,-504.0,0.00021192,2]
[332395131,1721148646595,-1407.0,0.00021192,2]
[332395133,1721148646604,-250.0,0.00021192,2]
[332395135,1721148646613,-160.574,0.00021192,2]
[332395137,1721148646623,-468.9,0.00021252,2]
[332395139,1721148646632,-151.0,0.00021252,2]
[332395141,1721148646642,-160.0,0.00021402,3]
[332395143,1721148646651,-620.0457477,0.00021406,2]
[332395146,1721148646662,-468.9,0.00021418,2]
[332395148,1721148646671,-151.0,0.00021418,2]
[332395150,1721148646680,-468.9,0.00021584,2]
[332395152,1721148646689,-151.0,0.00021584,2]
[332395154,1721148646698,-1360.48316841,0.00021729,2]
[332395156,1721148646708,-468.9,0.00021751,2]
[332395157,1721148646717,-151.0,0.00021751,2]
[332395159,1721148646726,-17612.52993338,0.0002176,3]
[332395161,1721148646736,-151.0,0.00021788,2]
[332395163,1721148646746,-151.0,0.00021788,2]
[332395165,1721148646755,-151.0,0.00021788,2]
[332395167,1721148646766,-151.0,0.00021788,2]
[332395168,1721148646775,-151.0,0.00021788,2]
[332395169,1721148646784,-230.339713,0.00021788,2]
[332395170,1721148646793,-156.730935,0.00021788,2]
[332395171,1721148646802,-156.730935,0.00021788,2]
[332395172,1721148646812,-151.0,0.00021788,2]
[332395173,1721148646821,-191.210288,0.00021788,2]
[332395174,1721148646831,-191.210288,0.00021788,2]
[332395175,1721148646840,-151.0,0.00021788,2]
[332395176,1721148646849,-151.0,0.00021788,2]
[332395177,1721148646858,-151.0,0.00021788,2]
[332395178,1721148646868,-151.0,0.00021788,2]
[332395179,1721148646877,-257.581564,0.00021788,2]
[332395180,1721148646886,-257.581564,0.00021788,2]
[332395181,1721148646895,-389.96541,0.00021788,2]
[332395182,1721148646904,-389.96541,0.00021788,2]
[332395183,1721148646914,-151.0,0.00021788,2]
[332395184,1721148646923,-151.0,0.00021788,2]
[332395185,1721148646932,-151.0,0.00021788,2]
[332395186,1721148646942,-151.0,0.00021788,2]
[332395187,1721148646951,-151.0,0.00021788,2]
[332395188,1721148646960,-151.0,0.00021788,2]
[332395189,1721148646969,-315.456766,0.00021788,2]
[332395190,1721148646980,-315.456766,0.00021788,2]
[332395191,1721148646989,-151.0,0.00021788,2]
[332395192,1721148646999,-156.924253,0.00021788,2]
[332395193,1721148647007,-12101.29780866,0.00021798,2]
[332395194,1721148647020,-151.0,0.00021798,2]
[332395195,1721148647029,-151.0,0.00021798,2]
[332395196,1721148647038,-151.0,0.00021798,2]
[332395197,1721148647047,-172.541372,0.00021798,2]
[332395198,1721148647057,-151.0,0.00021798,2]
[332395199,1721148647066,-151.0,0.00021798,2]
[332395200,1721148647076,-2837.65976581,0.000218,7]
[332395201,1721148647085,-151.0,0.000218,2]
[332395202,1721148647095,-151.0,0.000218,2]
[332395203,1721148647105,-150.112233,0.000218,5]
[332395204,1721148647115,-150.112233,0.000218,3]
[332395205,1721148647125,-150.112233,0.000218,5]
[332395206,1721148647136,-3000.0,0.000218,2]
[332395207,1721148647147,-3000.0,0.0002181,2]
[332395208,1721148647157,-3000.0,0.0002182,2]
[332395209,1721148647167,-151.0,0.00021829,2]
[332395210,1721148647176,-151.0,0.00021829,2]
[332395211,1721148647187,-151.0,0.00021829,2]
[332395212,1721148647196,-156.730935,0.00021829,2]
[332395213,1721148647205,-156.730935,0.00021829,2]
[332395214,1721148647216,-151.0,0.00021829,2]
[332395215,1721148647226,-191.210288,0.00021829,2]
[332395216,1721148647235,-191.210288,0.00021829,2]
[332395217,1721148647244,-151.0,0.00021829,2]
[332395218,1721148647253,-151.0,0.00021829,2]
[332395219,1721148647265,-151.0,0.00021829,2]
[332395220,1721148647274,-151.0,0.00021829,2]
[332395221,1721148647283,-257.581564,0.00021829,2]
[332395222,1721148647292,-257.581564,0.00021829,2]
[332395223,1721148647301,-389.96541,0.00021829,2]
[332395224,1721148647311,-389.96541,0.00021829,2]
[332395225,1721148647321,-151.0,0.00021829,2]
[332395226,1721148647331,-249.65338,0.00021829,2]
[332395227,1721148647340,-151.0,0.00021829,2]
[332395228,1721148647350,-151.0,0.00021829,2]
[332395229,1721148647360,-3000.0,0.0002183,2]
[332395230,1721148647370,-151.0,0.0002183,2]
[332395231,1721148647379,-151.0,0.0002183,2]
[332395232,1721148647388,-151.0,0.0002184,2]
[332395233,1721148647398,-151.0,0.0002184,2]
[332395234,1721148647407,-3000.0,0.0002184,2]
[332395235,1721148647416,-151.0,0.0002184,2]
[332395236,1721148647425,-151.0,0.0002184,2]
[332395237,1721148647434,-315.456766,0.0002184,2]
[332395238,1721148647444,-315.456766,0.0002184,2]
[332395239,1721148647453,-151.0,0.0002184,2]
[332395240,1721148647462,-151.0,0.0002185,2]
[332395241,1721148647471,-151.0,0.0002185,2]
[332395242,1721148647480,-151.0,0.0002185,2]
[332395243,1721148647490,-3000.0,0.0002185,2]
[332395244,1721148647499,-151.0,0.0002185,2]
[332395245,1721148647508,-151.0,0.0002185,2]
[332395246,1721148647518,-151.0,0.0002185,2]
[332395247,1721148647528,-151.0,0.0002185,2]
[332395248,1721148647537,-151.0,0.0002185,2]
[332395249,1721148647547,-156.730935,0.0002185,2]
[332395250,1721148647556,-156.730935,0.0002185,2]
[332395251,1721148647565,-151.0,0.0002185,2]
[332395252,1721148647574,-191.210288,0.0002185,2]
[332395253,1721148647583,-191.210288,0.0002185,2]
[332395254,1721148647593,-151.0,0.0002185,2]
[332395255,1721148647603,-151.0,0.0002185,2]
[332395256,1721148647612,-151.0,0.0002185,2]
[332395257,1721148647621,-151.0,0.0002185,2]
[332395258,1721148647631,-257.581564,0.0002185,2]
[332395259,1721148647640,-257.581564,0.0002185,2]
[332395260,1721148647649,-389.96541,0.0002185,2]
[332395261,1721148647658,-389.96541,0.0002185,2]
[332395262,1721148647668,-151.0,0.0002185,2]
[332395263,1721148647677,-151.0,0.0002185,2]
[332395264,1721148647686,-189.730436,0.0002185,2]
[332395265,1721148647695,-500.0,0.00021859,2]
[332395266,1721148647705,-500.0,0.00021859,2]
[332395267,1721148647714,-190.59901918,0.00021859,2]
[332395268,1721148647792,-165.14692085,0.00021859,2]
[332395269,1721148647802,-500.0,0.00021859,2]
[332395270,1721148647811,-500.0,0.00021859,2]
[332395271,1721148647820,-500.0,0.00021859,2]
[332395272,1721148647828,-500.0,0.00021859,2]
[332395273,1721148647837,-651.04147755,0.00021859,2]
[332395274,1721148647846,-500.0,0.00021859,2]
[332395275,1721148647855,-500.0,0.00021859,2]
[332395276,1721148647864,-500.0,0.00021859,2]